bitfinex/quotes_SOLUSD_20250901
["timestamp","ask_amount","ask_price","bid_price","bid_amount"]
[1756763384825,0.67,195.83,195.79,48.68]
[1756763385019,0.67,195.82,195.79,48.68]
[1756763385725,0.67,195.82,195.79,49.34]
[1756763385948,0.67,195.82,195.79,48.68]
[1756763386429,0.67,195.82,195.8,48.6]
[1756763388030,6.20466916,195.83,195.78,0.66]
[1756763388349,3.3965466,195.83,195.79,49.26]
[1756763388536,2.80812256,195.84,195.8,0.66]
[1756763388734,4.0965466,195.85,195.79,53.70751315]
[1756763389049,3.4265466,195.85,195.79,54.36751315]
[1756763389353,0.67,195.84,195.79,54.36751315]
[1756763389526,3.3965466,195.84,195.8,0.66]
[1756763389727,0.67,195.83,195.8,0.66]
[1756763390454,4.0665466,195.83,195.8,0.66]
[1756763390755,0.67,195.83,195.8,0.66]
[1756763391660,0.67,195.83,195.79,54.36751315]
[1756763391862,0.67,195.83,195.8,0.66]
[1756763392035,0.67,195.83,195.79,53.70751315]
[1756763392357,0.67,195.83,195.79,54.36751315]
[1756763392557,0.67,195.83,195.8,0.66]
[1756763392734,0.67,195.83,195.79,54.36751315]
[1756763392933,0.67,195.83,195.8,0.66]
[1756763393458,0.67,195.83,195.79,53.70751315]
[1756763393661,0.67,195.83,195.79,54.36751315]
[1756763394035,4.06734746,195.83,195.79,54.36751315]
[1756763394236,0.67,195.82,195.79,49.26]
[1756763394562,6.20547002,195.83,195.79,48.6]
[1756763394729,3.39734746,195.82,195.79,49.26]
[1756763395155,3.47812256,195.83,195.79,49.26]
[1756763395569,2.80812256,195.81,195.77,5.7679667]
[1756763395866,2.80812256,195.81,195.78,49.14]
[1756763396045,3.47812256,195.81,195.78,49.14]
[1756763396437,3.47812256,195.81,195.78,48.48]
[1756763396854,2.80812256,195.8,195.78,48.48]
[1756763397233,2.80812256,195.8,195.78,49.14]
[1756763397735,3.39734746,195.81,195.78,48.48]
[1756763397736,3.47812256,195.81,195.78,48.48]
[1756763398042,2.80812256,195.8,195.78,49.14]
[1756763398635,2.80812256,195.8,195.79,0.66]
[1756763398842,2.80812256,195.8,195.78,48.48]
[1756763399143,2.80812256,195.8,195.78,49.08]
[1756763399449,3.47812256,195.8,195.78,48.42]
[1756763399652,2.80812256,195.79,195.78,48.42]
[1756763399976,2.80812256,195.8,195.78,49.08]
[1756763400339,2.80812256,195.79,195.78,49.08]
[1756763400767,3.39734746,195.81,195.78,49.08]
[1756763400940,2.80812256,195.8,195.78,49.08]
[1756763401136,2.80812256,195.8,195.78,48.42]
[1756763401454,2.80812256,195.79,195.78,48.42]
[1756763401766,2.80812256,195.79,195.78,49.08]
[1756763401932,2.80812256,195.79,195.78,0.66]
[1756763402128,3.47812256,195.79,195.75,0.12]
[1756763402358,2.80812256,195.76,195.75,0.12]
[1756763403461,3.47812256,195.76,195.75,0.12]
[1756763404358,8.58641843,195.76,195.75,0.12]
[1756763404559,11.98376589,195.76,195.75,0.12]
[1756763407480,25.5793599,195.76,195.75,0.12]
[1756763407845,25.5793599,195.76,195.73,0.12]
[1756763408177,4.39563676,195.74,195.73,0.12]
[1756763408349,7.79298422,195.74,195.73,0.12]
[1756763408549,8.46298422,195.74,195.73,0.12]
[1756763409176,34.46298422,195.74,195.73,0.12]
[1756763409358,34.79127352,195.72,195.71,0.12]
[1756763409546,43.29796085,195.72,195.71,0.12]
[1756763409882,43.29796085,195.72,195.63,0.72]
[1756763409883,56.74131053,195.72,195.63,0.72]
[1756763410075,4.39563676,195.64,195.61,0.12]
[1756763410371,4.39563676,195.62,195.61,0.84]
[1756763411346,4.39563676,195.62,195.61,0.12]
[1756763411775,4.39563676,195.62,195.61,0.84]
[1756763412571,4.39563676,195.62,195.61,0.12]
[1756763414780,10.1775885,195.62,195.61,0.12]
[1756763415584,15.2893185,195.62,195.61,0.12]
[1756763416080,15.2893185,195.62,195.61,2.12]
[1756763416292,46.0,195.59,195.57,0.12]
[1756763416490,77.37838771,195.58,195.57,0.12]
[1756763416653,84.11788963,195.58,195.57,0.12]
[1756763418352,35.93788963,195.58,195.57,0.12]
[1756763418552,84.09788963,195.58,195.57,0.12]
[1756763418784,35.93788963,195.58,195.57,0.12]
[1756763419088,84.09788963,195.58,195.57,0.12]
[1756763421567,35.93788963,195.58,195.57,0.12]
[1756763421777,84.05788963,195.58,195.57,0.12]
[1756763422085,35.93788963,195.58,195.57,0.12]
[1756763422298,35.93788963,195.58,195.57,1e-08]
[1756763422469,104.03788963,195.58,195.57,1e-08]
[1756763422669,26.0,195.56,195.55,0.2]
[1756763422995,30.39563676,195.56,195.55,0.2]
[1756763423197,4.97563676,195.56,195.55,0.2]
[1756763423398,7.02655076,195.56,195.55,0.2]
[1756763423589,55.10655076,195.56,195.55,0.2]
[1756763424111,55.12655076,195.56,195.55,0.2]
[1756763424296,50.730914,195.56,195.55,0.2]
[1756763424591,60.2400709,195.56,195.55,0.2]
[1756763425993,73.83566491,195.56,195.55,0.2]
[1756763426569,13.59559401,195.55,195.54,0.12]
[1756763426866,17.99123077,195.55,195.54,0.12]
[1756763427065,18.57123077,195.55,195.54,0.12]
[1756763427277,66.61123077,195.55,195.54,0.12]
[1756763427696,18.57123077,195.55,195.54,0.12]
[1756763427991,71.72501241,195.55,195.54,0.12]
[1756763429866,69.34050065,195.55,195.54,0.12]
[1756763430066,73.73613741,195.55,195.54,0.12]
[1756763431391,25.73613741,195.55,195.54,0.12]
[1756763431580,73.73613741,195.55,195.54,0.12]
[1756763431782,69.34050065,195.55,195.54,0.12]
[1756763432088,25.73613741,195.55,195.54,0.12]
[1756763432297,20.04235577,195.55,195.54,0.84]
[1756763432600,68.00235577,195.55,195.54,0.84]
[1756763432796,20.04235577,195.55,195.54,0.84]
[1756763432964,68.00235577,195.55,195.54,0.84]
[1756763433166,80.40676176,195.55,195.54,0.84]
[1756763433706,81.10490664,195.55,195.54,0.84]
[1756763433871,85.5005434,195.55,195.54,0.84]
[1756763434075,81.10490664,195.55,195.54,0.84]
[1756763434391,85.5005434,195.55,195.54,0.84]
[1756763434702,80.38676176,195.55,195.54,0.84]
[1756763434906,27.331125,195.55,195.54,0.84]
[1756763435084,25.54912147,195.71,195.54,0.84]
[1756763435085,13.59559401,195.59,195.54,5.23563676]
[1756763435284,4.39563676,195.59,195.54,4.51563676]
[1756763435476,4.39563676,195.58,195.54,0.12]
[1756763435670,2.050388,195.56,195.54,0.12]
[1756763436017,4.39563676,195.57,195.54,0.12]
[1756763436691,4.39563676,195.56,195.54,0.12]
[1756763437006,30.39563676,195.56,195.54,0.12]
[1756763437411,26.0,195.55,195.54,0.12]
[1756763437770,4.39563676,195.56,195.54,0.12]
[1756763438189,31.11299947,195.58,195.54,0.12]
[1756763438396,4.39563676,195.57,195.54,0.12]
[1756763438591,4.39563676,195.56,195.54,0.12]
[1756763438905,4.39563676,195.55,195.54,0.12]
[1756763439588,4.39563676,195.56,195.54,0.12]
[1756763439792,31.11300965,195.58,195.54,0.12]
[1756763440107,4.39563676,195.56,195.54,0.12]
[1756763440400,4.39563676,195.55,195.54,0.12]
[1756763446110,31.07563676,195.55,195.54,0.12]
[1756763446709,10.1894184,195.55,195.54,0.12]
[1756763447812,57.9294184,195.55,195.54,0.12]
[1756763448885,57.9094184,195.55,195.54,0.12]
[1756763450306,61.26923084,195.55,195.54,0.12]
[1756763450821,74.86482485,195.55,195.54,0.12]
[1756763453897,74.80482485,195.55,195.54,0.12]
[1756763454698,78.96358784,195.55,195.54,0.12]
[1756763456297,78.92358784,195.55,195.54,0.12]
[1756763456501,80.97460784,195.55,195.54,0.12]
[1756763457323,80.97460784,195.55,195.53,0.12]
[1756763457532,11.97439477,195.54,195.53,0.12]
[1756763458031,14.70551877,195.54,195.53,0.12]
[1756763458216,19.81956193,195.54,195.53,0.12]
[1756763460131,67.37956193,195.54,195.53,0.12]
[1756763460496,63.16061636,195.54,195.53,0.12]
[1756763460895,58.7649796,195.54,195.53,0.12]
[1756763461115,63.16061636,195.54,195.53,0.12]
[1756763463099,80.94048978,195.54,195.53,0.12]
[1756763465500,33.42048978,195.54,195.53,0.12]
[1756763465699,80.90048978,195.54,195.53,0.12]
[1756763465998,33.42048978,195.54,195.53,0.12]
[1756763466215,80.90048978,195.54,195.53,0.12]
[1756763466414,76.67621037,195.54,195.53,0.12]
[1756763468111,75.09945645,195.54,195.53,0.12]
[1756763468645,79.32113229,195.54,195.53,0.12]
[1756763470031,31.84113229,195.54,195.53,0.12]
[1756763470211,79.28113229,195.54,195.53,0.12]
[1756763474806,91.53532828,195.54,195.53,0.12]
[1756763476433,91.56532828,195.54,195.53,0.12]
[1756763481056,88.74644544,195.54,195.53,0.12]
[1756763481362,89.51420428,195.54,195.53,0.12]
[1756763481545,91.56511828,195.54,195.53,0.12]
[1756763482937,87.34344244,195.54,195.52,0.12]
[1756763483237,10.40103755,195.53,195.52,0.12]
[1756763483769,144.92103755,195.53,195.52,0.12]
[1756763484056,158.51663156,195.53,195.52,0.12]
[1756763484257,166.54848528,195.53,195.52,0.12]
[1756763484434,172.82169925,195.53,195.52,0.12]
[1756763485466,173.71380899,195.53,195.52,0.12]
[1756763487667,173.71380899,195.53,195.51,0.12]
[1756763487861,61.08081034,195.52,195.51,0.12]
[1756763488075,69.11177411,195.52,195.51,0.12]
[1756763489552,74.22634039,195.52,195.51,0.12]
[1756763489879,87.8219344,195.52,195.51,0.12]
[1756763490070,87.8219344,195.52,195.5,0.12]
[1756763490071,13.59559401,195.51,195.41,0.2]
[1756763490270,28.81888284,195.49,195.41,0.2]
[1756763490470,36.402941,195.49,195.41,0.2]
[1756763490777,37.122941,195.49,195.41,0.2]
[1756763491281,55.83388617,195.49,195.41,0.2]
[1756763492065,29.83388617,195.49,195.41,0.2]
[1756763492384,26.0,195.47,195.41,0.2]
[1756763492557,2.81888284,195.42,195.41,0.2]
[1756763493358,7.93606634,195.42,195.41,0.2]
[1756763493584,11.29587878,195.42,195.41,0.2]
[1756763495955,72.56147279,195.42,195.41,0.2]
[1756763496157,76.78682757,195.42,195.41,0.2]
[1756763496966,28.83674966,195.42,195.41,0.2]
[1756763497172,80.6878095,195.42,195.41,0.2]
[1756763497467,84.89776692,195.42,195.41,0.2]
[1756763498185,86.48920603,195.42,195.41,0.2]
[1756763499271,92.64924231,195.42,195.41,0.2]
[1756763499475,50.07956426,195.42,195.41,0.2]
[1756763499676,97.01956426,195.42,195.41,0.2]
[1756763500268,92.80960684,195.42,195.41,0.2]
[1756763500485,26.0,195.38,195.37,0.12]
[1756763500691,111.94704441,195.38,195.37,0.12]
[1756763500892,112.61704441,195.38,195.37,0.12]
[1756763501192,67.75006341,195.38,195.37,0.12]
[1756763501364,114.67006341,195.38,195.37,0.12]
[1756763502270,114.65006341,195.38,195.37,0.12]
[1756763503098,114.65006341,195.38,195.37,1e-08]
[1756763503262,13.59559401,195.37,195.35,0.12]
[1756763503465,61.09905956,195.36,195.35,0.12]
[1756763503681,67.86321927,195.36,195.35,0.12]
[1756763503881,69.91623927,195.36,195.35,0.12]
[1756763504396,75.03499438,195.36,195.35,0.12]
[1756763504892,28.15499438,195.36,195.35,0.12]
[1756763505073,75.03499438,195.36,195.35,0.12]
[1756763505492,28.15499438,195.36,195.35,0.12]
[1756763505701,75.01499438,195.36,195.35,0.12]
[1756763505996,88.61058839,195.36,195.35,0.12]
[1756763506806,41.75058839,195.36,195.35,0.12]
[1756763507091,88.59058839,195.36,195.35,0.12]
[1756763507400,88.57058839,195.36,195.35,0.12]
[1756763508972,41.75058839,195.36,195.35,0.12]
[1756763509292,41.75058839,195.36,195.34,0.2]
[1756763509293,6.09415971,195.35,195.34,0.2]
[1756763509503,25.43223641,195.35,195.34,0.2]
[1756763509692,26.10223641,195.35,195.34,0.2]
[1756763509893,72.90223641,195.35,195.34,0.2]
[1756763510092,72.88223641,195.35,195.34,0.2]
[1756763510397,203.32242397,195.35,195.34,0.2]
[1756763510898,69.52242397,195.35,195.34,0.2]
[1756763511479,13.59559401,195.34,195.21,4.41032195]
[1756763511796,26.0,195.31,195.19,18.7185731]
[1756763511997,46.76,195.3,195.2,4.41032195]
[1756763512198,0.67,195.3,195.2,4.41032195]
[1756763512377,4.41032195,195.25,195.19,18.7185731]
[1756763512567,4.41032195,195.24,195.18,9.53377047]
[1756763512771,46.74,195.25,195.18,5.12344852]
[1756763512968,4.41032195,195.22,195.18,5.12344852]
[1756763514074,26.0,195.23,195.17,15.602388]
[1756763514274,4.41032195,195.21,195.17,15.602388]
[1756763514782,4.41032195,195.21,195.17,0.2]
[1756763515701,4.41032195,195.2,195.17,0.2]
[1756763515897,4.41032195,195.19,195.17,0.2]
[1756763516579,77.82236719,195.23,195.17,0.2]
[1756763516580,4.41032195,195.18,195.17,0.2]
[1756763517872,35.53379771,195.18,195.17,0.2]
[1756763518082,31.79347576,195.18,195.17,0.2]
[1756763518402,36.20379771,195.18,195.17,0.2]
[1756763518812,82.86379771,195.18,195.17,0.2]
[1756763519394,96.45939172,195.18,195.17,0.2]
[1756763519703,96.43939172,195.18,195.17,0.2]
[1756763520484,31.79347576,195.18,195.17,0.2]
[1756763520688,96.41939172,195.18,195.17,0.2]
[1756763521581,91.29591596,195.18,195.17,0.2]
[1756763522611,91.27591596,195.18,195.17,0.2]
[1756763523198,49.79939172,195.18,195.17,0.2]
[1756763523399,49.12939172,195.18,195.17,0.2]
[1756763523693,30.41032195,195.18,195.17,0.2]
[1756763523991,76.99032195,195.18,195.17,0.2]
[1756763524178,15.407925,195.19,195.17,0.2]
[1756763524385,76.99032195,195.18,195.17,0.2]
[1756763526719,30.41032195,195.18,195.17,0.2]
[1756763527915,4.41032195,195.18,195.17,0.2]
[1756763529308,50.91032195,195.18,195.17,0.2]
[1756763529500,56.03379771,195.18,195.17,0.2]
[1756763530019,56.74379771,195.18,195.17,0.2]
[1756763530189,70.33939172,195.18,195.17,0.2]
[1756763530392,76.78831689,195.18,195.17,0.2]
[1756763530716,89.60586289,195.18,195.17,0.2]
[1756763531297,49.2000226,195.18,195.17,0.2]
[1756763531514,95.6800226,195.18,195.17,0.2]
[1756763532394,26.0,195.15,195.01,13.59559401]
[1756763532602,62.00871201,195.18,194.99,13.59559401]
[1756763532603,4.41032195,195.08,194.99,13.59559401]
[1756763532801,4.41032195,195.08,195.02,4.41032195]
[1756763533018,4.41032195,195.07,195.01,4.41032195]
[1756763533203,4.41032195,195.07,195.02,15.414258]
[1756763533599,4.41032195,195.07,195.01,4.41032195]
[1756763533928,4.41032195,195.07,195.02,5.12767921]
[1756763535326,47.15,195.09,195.01,4.41032195]
[1756763535327,4.41032195,195.06,195.01,5.12788979]
[1756763536116,46.4,195.08,195.01,5.12788979]
[1756763536317,4.41032195,195.06,195.01,5.12788979]
[1756763536760,4.41032195,195.06,195.0,24.95431054]
[1756763536899,72.38,195.08,195.0,9.53846854]
[1756763537096,4.41032195,195.06,195.0,9.53846854]
[1756763537531,4.41032195,195.05,195.0,5.12814659]
[1756763537896,30.41032195,195.05,195.0,5.12814659]
[1756763538715,30.41032195,195.05,194.98,19.82695595]
[1756763539017,30.41032195,195.05,194.98,15.416634]
[1756763539217,30.41032195,195.05,194.98,19.82695595]
[1756763539420,30.41032195,195.05,194.99,4.41032195]
[1756763540432,26.0,195.05,194.99,4.41032195]
[1756763540635,26.0,195.05,194.99,5.12835204]
[1756763540810,30.41032195,195.05,194.99,9.53867399]
[1756763541003,31.12032195,195.05,194.99,9.53867399]
[1756763541203,36.24733485,195.05,194.99,9.53867399]
[1756763542347,35.53733485,195.05,194.98,5.12873115]
[1756763542507,4.41032195,195.03,194.97,25.15589097]
[1756763543034,5.12032195,195.03,194.97,9.73925697]
[1756763543437,15.420597,195.02,194.97,9.73925697]
[1756763543626,16.130597,195.02,194.97,9.73925697]
[1756763543828,0.71,195.01,194.97,5.32893502]
[1756763544047,0.71,195.01,194.97,9.73925697]
[1756763544428,0.71,195.01,194.97,5.32893502]
[1756763545639,0.71,195.0,194.97,0.2]
[1756763545944,0.71,194.99,194.97,0.2]
[1756763546446,5.12032195,194.99,194.97,0.2]
[1756763546628,0.71,194.99,194.97,0.2]
[1756763546825,5.12032195,194.99,194.97,0.2]
[1756763547220,5.12032195,194.98,194.97,0.2]
[1756763547812,26.0,195.02,194.97,0.2]
[1756763547813,72.22,195.02,194.97,0.2]
[1756763548023,26.0,194.99,194.97,5.32890412]
[1756763548336,26.0,194.99,194.97,0.2]
[1756763549545,26.71,194.99,194.97,0.2]
[1756763551438,26.0,194.99,194.97,0.2]
[1756763551636,0.71,195.02,194.97,5.32897539]
[1756763551822,46.87,195.04,194.99,4.41032195]
[1756763552022,0.71,195.03,194.99,4.41032195]
[1756763552839,0.71,195.02,194.98,13.94987695]
[1756763553035,0.71,195.02,194.98,9.539555]
[1756763553437,0.71,195.02,194.99,5.12846812]
[1756763554255,0.71,195.02,194.98,9.539555]
[1756763554854,0.71,195.02,194.98,14.66828611]
[1756763556353,35.539555,195.06,194.98,14.66828611]
[1756763556354,10.259555,195.06,195.01,4.41032195]
[1756763556662,0.72,195.06,195.02,4.41032195]
[1756763556954,50.51032195,195.07,195.02,4.41032195]
[1756763557160,51.23032195,195.07,195.02,4.41032195]
[1756763557326,0.72,195.06,195.01,4.41032195]
[1756763557528,5.13032195,195.06,195.0,4.41032195]
[1756763557958,0.72,195.06,195.01,4.41032195]
[1756763558254,4.41032195,195.07,195.01,4.41032195]
[1756763558462,0.72,195.05,195.01,4.41032195]
[1756763559151,0.72,195.05,194.99,14.668286]
[1756763559468,0.72,195.04,194.99,14.668286]
[1756763559635,0.72,195.04,195.0,4.41032195]
[1756763560652,0.72,195.04,194.99,19.79673515]
[1756763560833,4.41032195,195.05,194.99,5.12844915]
[1756763560834,0.72,195.03,194.99,5.12844915]
[1756763561037,0.72,195.03,194.99,9.5387711]
[1756763561861,4.41032195,195.05,194.99,9.5387711]
[1756763562045,5.13032195,195.05,194.99,9.5387711]
[1756763562647,4.41032195,195.04,194.98,5.12873115]
[1756763562849,5.13032195,195.04,194.99,4.41032195]
[1756763563764,0.72,195.04,195.0,5.12820512]
[1756763563941,4.41032195,195.05,195.0,5.12820512]
[1756763564136,0.72,195.04,195.0,5.12820512]
[1756763564334,60.648286,195.07,195.0,5.12820512]
[1756763564646,14.668286,195.07,195.02,4.41032195]
[1756763565038,14.668286,195.07,195.03,4.41032195]
[1756763565238,14.668286,195.07,195.05,4.41032195]
[1756763565770,0.72,195.1,195.06,5.1266277]
[1756763565942,0.72,195.09,195.06,5.1266277]
[1756763566569,0.72,195.09,195.06,9.53694965]
[1756763567234,0.72,195.1,195.06,9.53694965]
[1756763568472,0.72,195.1,195.03,5.12741629]
[1756763568671,0.72,195.1,195.06,4.41032195]
[1756763569548,0.72,195.1,195.06,5.1266277]
[1756763569754,0.72,195.1,195.06,5.2466277]
[1756763571361,9.65694995,195.11,195.06,5.2466277]
[1756763571564,10.37694995,195.11,195.06,5.2466277]
[1756763571772,0.72,195.1,195.06,5.2466277]
[1756763572074,4.41032195,195.12,195.06,9.65694965]
[1756763572273,5.366627,195.12,195.07,4.41032195]
[1756763572449,9.77694895,195.12,195.07,4.41032195]
[1756763572650,10.49694895,195.12,195.06,5.2466277]
[1756763572969,10.49694895,195.12,195.07,4.41032195]
[1756763573153,5.13032195,195.12,195.07,4.41032195]
[1756763573351,0.72,195.12,195.08,5.12610211]
[1756763573577,0.72,195.15,195.08,5.12610211]
[1756763573755,0.72,195.15,195.1,4.41032195]
[1756763573957,0.72,195.15,195.08,5.12610211]
[1756763573958,0.72,195.15,195.11,4.41032195]
[1756763575265,26.0,195.16,195.11,4.41032195]
[1756763575462,0.72,195.15,195.11,9.53555941]
[1756763576750,5.16032195,195.17,195.11,9.53555941]
[1756763577463,0.72,195.16,195.11,9.53555941]
[1756763578475,0.72,195.16,195.12,4.41032195]
[1756763579967,0.72,195.16,195.13,5.1247886]
[1756763580567,0.72,195.16,195.13,9.53511055]
[1756763580780,0.03,195.17,195.13,5.1247886]
[1756763581091,0.72,195.16,195.11,26.0]
[1756763581255,4.44032195,195.17,195.11,30.41032195]
[1756763581456,0.72,195.16,195.13,26.0]
[1756763582569,0.72,195.15,195.11,30.41032195]
[1756763583380,0.03,195.17,195.11,30.41032195]
[1756763583561,4.41032195,195.16,195.11,30.41032195]
[1756763583760,0.72,195.15,195.08,5.12610211]
[1756763584080,5.13032195,195.14,195.09,4.41032195]
[1756763584463,5.13032195,195.14,195.08,5.12610211]
[1756763584668,5.13032195,195.14,195.09,4.41032195]
[1756763584863,0.72,195.13,195.09,4.41032195]
[1756763585371,5.11032195,195.12,195.07,9.53666019]
[1756763585575,5.11032195,195.11,195.06,9.65691174]
[1756763585777,0.7,195.11,195.06,9.65691174]
[1756763585982,4.41032195,195.12,195.06,5.24658979]
[1756763586171,4.41032195,195.12,195.06,9.65691174]
[1756763586372,0.7,195.11,195.06,9.65691174]
[1756763587765,0.7,195.11,195.07,4.41032195]
[1756763588072,0.7,195.1,195.07,0.12]
[1756763588686,5.82506284,195.12,195.07,0.12]
[1756763588860,0.7,195.11,195.07,4.53032195]
[1756763589067,0.7,195.1,195.07,0.12]
[1756763589274,0.7,195.09,195.07,0.12]
[1756763589463,0.7,195.08,195.07,0.12]
[1756763592570,10.23642406,195.08,195.07,0.12]
[1756763592785,10.23642406,195.08,195.06,0.12]
[1756763593085,4.41032195,195.07,195.06,0.12]
[1756763593290,5.82610211,195.08,195.06,0.12]
[1756763593484,5.11032195,195.07,195.06,0.12]
[1756763594582,31.11032195,195.07,195.06,0.12]
[1756763594784,31.82636489,195.07,195.06,0.12]
[1756763595088,36.23668684,195.07,195.06,0.12]
[1756763599167,81.75668684,195.07,195.06,0.12]
[1756763599582,13.59559401,195.06,195.05,0.12]
[1756763599864,155.1587472,195.06,195.05,0.12]
[1756763600069,155.8587472,195.06,195.04,0.12]
[1756763600271,7.76315319,195.05,195.04,0.12]
[1756763600782,8.46315319,195.05,195.04,0.12]
[1756763601501,13.59004373,195.05,195.04,0.12]
[1756763602393,18.13036473,195.05,195.04,0.12]
[1756763603489,26.0,195.02,194.97,0.2]
[1756763603793,4.41032195,195.0,194.97,0.2]
[1756763604184,5.11032195,195.0,194.97,0.2]
[1756763604902,10.23861344,195.0,194.97,0.2]
[1756763605707,0.7,194.99,194.97,0.2]
[1756763606302,10.23861344,195.0,194.97,0.2]
[1756763607001,5.82829149,195.0,194.97,0.2]
[1756763607202,10.23861344,195.0,194.97,0.2]
[1756763607576,0.7,194.99,194.97,0.2]
[1756763609199,4.41032195,195.0,194.97,0.2]
[1756763609405,5.11032195,195.0,194.97,0.2]
[1756763609797,10.23856946,195.0,194.97,0.2]
[1756763609998,0.7,194.99,194.97,0.2]
[1756763610796,9.53856946,195.0,194.97,0.2]
[1756763610993,0.7,194.99,194.97,0.2]
[1756763611674,5.82860466,194.99,194.97,0.2]
[1756763611876,5.12860466,194.99,194.97,0.2]
[1756763612302,0.7,194.99,194.97,0.2]
[1756763612812,5.82854292,194.99,194.97,0.2]
[1756763613483,0.7,194.98,194.97,0.2]
[1756763613908,10.2390531,194.98,194.97,0.2]
[1756763615106,0.69,195.01,194.97,0.33]
[1756763615507,5.10032195,195.01,194.97,0.2]
[1756763616024,0.69,195.0,194.97,0.2]
[1756763616181,5.10032195,195.0,194.97,0.2]
[1756763616876,0.69,195.0,194.97,0.2]
[1756763617097,5.10032195,195.0,194.97,0.2]
[1756763617805,0.69,195.02,194.97,0.33]
[1756763618012,4.41032195,195.01,194.97,0.33]
[1756763618196,5.10032195,195.01,194.97,0.33]
[1756763618391,5.10032195,195.01,194.97,0.2]
[1756763619179,0.69,195.0,194.97,0.2]
[1756763620708,5.10032195,194.99,194.97,0.2]
[1756763620890,0.69,194.99,194.97,0.2]
[1756763621097,0.69,194.98,194.97,0.2]
[1756763621886,9.53884566,194.99,194.97,0.2]
[1756763622183,0.69,194.98,194.97,0.2]
[1756763622820,0.69,194.99,194.97,0.2]
[1756763622991,4.41032195,195.0,194.97,0.2]
[1756763623207,5.10032195,195.0,194.97,0.2]
[1756763623718,0.69,194.99,194.97,0.2]
[1756763623896,26.69,195.01,194.97,0.2]
[1756763624093,4.41032195,195.0,194.97,0.2]
[1756763624987,5.10032195,195.0,194.97,0.2]
[1756763625190,26.0,195.01,194.97,0.2]
[1756763625414,5.10032195,195.0,194.97,0.2]
[1756763626209,5.10032195,194.99,194.97,0.2]
[1756763626719,0.69,194.98,194.97,0.2]
[1756763628229,5.10032195,194.99,194.97,0.2]
[1756763629329,4.41032195,194.99,194.97,0.2]
[1756763629624,0.69,194.98,194.97,0.2]
[1756763629820,0.69,194.99,194.97,0.2]
[1756763630124,5.10032195,194.99,194.97,0.2]
[1756763630936,0.69,194.98,194.97,0.2]
[1756763634847,0.69,194.99,194.97,0.2]
[1756763635708,0.69,194.98,194.97,0.2]
[1756763643628,3.37416857,194.99,194.97,0.2]
[1756763643824,4.06416857,195.0,194.97,0.2]
[1756763644131,0.69,194.99,194.97,0.2]
[1756763644935,6.20779819,195.0,194.97,0.2]
[1756763645250,11.3360701,195.0,194.97,0.2]
[1756763645452,3.37416857,194.99,194.97,0.2]
[1756763645758,4.05416857,194.99,194.97,0.2]
[1756763645938,0.68,194.98,194.97,0.2]
[1756763646343,3.51362962,194.98,194.97,0.2]
[1756763646827,15.76909007,194.98,194.97,0.2]
[1756763648946,15.76987423,194.98,194.97,0.2]
[1756763649834,12.93624461,194.98,194.97,0.2]
[1756763650133,14.39258336,194.98,194.97,0.2]
[1756763651032,19.52131451,194.98,194.97,0.2]
[1756763652452,19.52042093,194.98,194.97,0.2]
[1756763655438,26.0,194.96,194.95,0.12]
[1756763655759,85.05616471,194.96,194.95,0.12]
[1756763655953,85.26764434,194.96,194.89,0.2]
[1756763656152,2.83362962,194.9,194.87,0.31878245]
[1756763656341,2.83362962,194.88,194.87,0.31878245]